[Event "98th Caplin Hastings Masters 2024-25"]
[Site "Hastings"]
[Date "2025.01.02"]
[Round "8.23"]
[White "Badacsonyi, Frankie"]
[Black "Bhatia, Kanishka"]
[Result "1/2-1/2"]
[ECO "E15"]
[WhiteElo "2218"]
[BlackElo "2018"]
[Annotator "RC"]
[PlyCount "140"]
[EventDate "2024.12.23"]
[EventType "swiss"]
[EventCountry "ENG"]
[SourceTitle "playchess.com"]
[Source "ChessBase"]
[SourceQuality "1"]
[TimeControl "5400+30"]

1. d4 {[%emt 0:00:06]} Nf6 {[%emt 0:00:08]} 2. c4 {[%emt 0:00:24]} e6 {[%emt 0:00:13]} 3. Nf3 {[%emt 0:00:29]} b6 {[%emt 0:00:08]} 4. g3 {[%emt 0:01:15]} Ba6 {[%emt 0:00:05]} 5. b3 {[%emt 0:00:04]} Bb4+ {[%emt 0:00:05]} 6. Bd2 {[%emt 0:00:05]} Be7 {[%emt 0:00:04]} 7. Nc3 {[%emt 0:00:40]} Bb7 {[%emt 0:00:35]} 8. Bg2 {[%emt 0:00:33]} O-O {[%emt 0:00:47]} 9. O-O {[%emt 0:01:28]} c5 {[%emt 0:00:57]} 10. d5 {[%emt 0:10:43]} exd5 {[%emt 0:04:36]} 11. Nh4 {[%emt 0:00:29]} Re8 {[%emt 0:16:35]} 12. Nf5 {[%emt 0:03:17]} Bf8 {[%emt 0:00:30]} 13. Ne3 {[%emt 0:04:16]} d6 {[%emt 0:06:19]} 14. Nexd5 {[%emt 0:00:53]} Nxd5 {[%emt 0:00:18]} 15. Bxd5 {[%emt 0:00:18]} Bxd5 {[%emt 0:00:12]} 16. Nxd5 {[%emt 0:00:06]} Na6 {[%emt 0:01:49]} 17. Bf4 {[%emt 0:13:49]} Nc7 {[%emt 0:02:35]} 18. Re1 {[%emt 0:01:02]} Ne6 {[%emt 0:03:48]} 19. Qd3 {[%emt 0:01:06]} Qd7 {[%emt 0:05:13]} 20. Rad1 {[%emt 0:00:48]} Rad8 {[%emt 0:01:07]} 21. Bc1 {[%emt 0:02:17]} Nc7 {[%emt 0:02:22]} 22. e4 {[%emt 0:02:49]} Nxd5 {[%emt 0:00:16]} 23. Qxd5 {[%emt 0:00:01]} Re5 {[%emt 0:03:21]} 24. Qd3 {[%emt 0:00:45]} Rde8 {[%emt 0:02:27]} 25. Bf4 {[%emt 0:01:46]} R5e6 {[%emt 0:00:19]} 26. f3 {[%emt 0:08:36]} f5 {[%emt 0:04:36]} 27. Re2 {[%emt 0:21:23]} fxe4 {[%emt 0:01:52]} 28. Rxe4 {[%emt 0:00:02]} Rxe4 {[%emt 0:00:32]} 29. fxe4 {[%emt 0:00:01]} Qe6 {[%emt 0:00:58]} 30. Re1 {[%emt 0:01:25]} h6 {[%emt 0:04:26]} 31. h4 {[%emt 0:03:19]} Be7 {[%emt 0:02:27]} 32. Qd5 {[%emt 0:03:42]} Bf8 {[%emt 0:02:51]} 33. Qxe6+ {[%emt 0:04:56]} Rxe6 {[%emt 0:00:06]} 34. h5 {[%emt 0:00:30]} Be7 {[%emt 0:04:03]} 35. Kg2 {[%emt 0:00:02]} Bf6 {[%emt 0:00:49]} 36. Kf3 {[%emt 0:00:01]} Be5 {[%emt 0:00:28]} 37. Rd1 {[%emt 0:00:46]} Kf7 {[%emt 0:00:42]} 38. Rh1 {[%emt 0:01:44]} Rf6 {[%emt 0:01:21]} 39. Rh2 {[%emt 0:01:05]} Ke6 {[%emt 0:00:47]} 40. Rh4 {[%emt 0:01:19]} Bd4 {[%emt 0:02:04]} 41. Rh2 {[%emt 0:01:13]} Be5 {[%emt 0:00:18]} 42. Rc2 {[%emt 0:00:02]} Rf7 {[%emt 0:00:32]} 43. Rc1 {[%emt 0:05:31]} Rf8 {[%emt 0:02:31]} 44. Rd1 {[%emt 0:00:15]} Bd4 {[%emt 0:01:12]} 45. Rf1 {[%emt 0:00:08]} a6 {[%emt 0:00:56]} 46. Ke2 {[%emt 0:02:32]} Be5 {[%emt 0:03:58]} 47. Kf3 {[%emt 0:01:16]} b5 {[%emt 0:01:18]} 48. Rc1 {[%emt 0:00:02]} Bb2 {[%emt 0:01:07]} 49. Rc2 {[%emt 0:00:08]} Be5 {[%emt 0:00:12]} 50. Ke3 {[%emt 0:01:46]} Bd4+ {[%emt 0:01:00]} 51. Kd3 {[%emt 0:00:08]} Be5 {[%emt 0:00:13]} 52. Rf2 {[%emt 0:00:52]} Rf7 {[%emt 0:00:13]} 53. Rf1 {[%emt 0:00:34]} b4 {[%emt 0:01:34]} 54. Ke3 {[%emt 0:00:25]} a5 {[%emt 0:00:20]} 55. Rd1 {[%emt 0:00:23]} Bd4+ {[%emt 0:00:48]} 56. Kf3 {[%emt 0:00:55]} a4 {[%emt 0:00:50]} 57. Rd3 {[%emt 0:00:30]} axb3 {[%emt 0:00:15]} 58. axb3 {[%emt 0:00:01]} Ra7 {[%emt 0:00:32]} 59. Be3 {[%emt 0:00:11]} Be5 {[%emt 0:01:36]} 60. Bf4 {[%emt 0:00:05]} Bd4 {[%emt 0:00:38]} 61. Be3 {[%emt 0:00:19]} Bxe3 {[%emt 0:00:19]} 62. Kxe3 {[%emt 0:00:09]} Ra2 {[%emt 0:00:24]} 63. Kf4 {[%emt 0:02:28]} Rh2 {[%emt 0:00:45]} 64. Rd5 {[%emt 0:00:11]} Rb2 {[%emt 0:00:31]} 65. e5 {[%emt 0:00:52]} dxe5+ {[%emt 0:03:51]} 66. Rxe5+ {[%emt 0:00:00]} Kd6 {[%emt 0:05:12]} 67. Rd5+ {[%emt 0:00:01]} Kc6 {[%emt 0:00:01]} 68. Rd3 {[%emt 0:00:01]} Rc2 {[%emt 0:00:54]} 69. Ke4 {[%emt 0:01:18]} Re2+ {[%emt 0:01:49]} 70. Kf4 {[%emt 0:00:22]} Rc2 {[%emt 0:01:00]} 1/2-1/2

[Event "98th Caplin Hastings Masters 2024-25"]
[Site "Hastings"]
[Date "2025.01.02"]
[Round "8.25"]
[White "Malinovskii, Ilia"]
[Black "Wall, Tim P"]
[Result "1/2-1/2"]
[ECO "B00"]
[WhiteElo "2003"]
[BlackElo "2173"]
[Annotator "RC"]
[PlyCount "107"]
[EventDate "2024.12.23"]
[EventType "swiss"]
[EventCountry "ENG"]
[SourceTitle "playchess.com"]
[Source "ChessBase"]
[SourceQuality "1"]
[TimeControl "5400+30"]

1. e4 {[%emt 0:00:05]} Nc6 {[%emt 0:01:29]} 2. Nc3 {[%emt 0:00:33]} Nf6 {[%emt 0:01:32]} 3. d4 {[%emt 0:04:04]} e5 {[%emt 0:02:46]} 4. dxe5 {[%emt 0:01:53]} Nxe5 {[%emt 0:00:22]} 5. f4 {[%emt 0:01:00]} Nc6 {[%emt 0:00:48]} 6. e5 {[%emt 0:03:08]} Ng8 {[%emt 0:00:23]} 7. Nf3 {[%emt 0:01:36]} Nh6 {[%emt 0:02:50]} 8. Be3 {[%emt 0:05:16]} Bb4 {[%emt 0:02:48]} 9. Qd2 {[%emt 0:04:18]} O-O {[%emt 0:03:37]} 10. O-O-O {[%emt 0:00:24]} d6 {[%emt 0:01:35]} 11. a3 {[%emt 0:00:59]} Ba5 {[%emt 0:02:19]} 12. Qe1 {[%emt 0:10:56]} Re8 {[%emt 0:09:27]} 13. h3 {[%emt 0:07:54]} Bd7 {[%emt 0:04:45]} 14. g4 {[%emt 0:08:52]} dxe5 {[%emt 0:10:45]} 15. Nxe5 {[%emt 0:05:13]} Nxe5 {[%emt 0:02:57]} 16. fxe5 {[%emt 0:00:06]} Rxe5 {[%emt 0:09:58]} 17. Qd2 {[%emt 0:06:02]} Qe7 {[%emt 0:12:26]} 18. Bf4 {[%emt 0:08:38]} Bc6 {[%emt 0:02:57]} 19. Bxe5 {[%emt 0:08:15]} Bxh1 {[%emt 0:00:18]} 20. Bf4 {[%emt 0:01:16]} Bc6 {[%emt 0:01:12]} 21. b4 {[%emt 0:00:45]} Bb6 {[%emt 0:02:00]} 22. Kb2 {[%emt 0:02:14]} a6 {[%emt 0:06:36]} 23. Bc4 {[%emt 0:02:58]} Kh8 {[%emt 0:06:03]} 24. Re1 {[%emt 0:06:39]} Qh4 {[%emt 0:03:55]} 25. Bxh6 {[%emt 0:00:41]} Qxh6 {[%emt 0:00:14]} 26. Qxh6 {[%emt 0:00:09]} gxh6 {[%emt 0:00:04]} 27. Bxf7 {[%emt 0:01:11]} Rd8 {[%emt 0:03:57]} 28. Kb3 {[%emt 0:01:48]} Kg7 {[%emt 0:01:32]} 29. Bc4 {[%emt 0:00:30]} Rd7 {[%emt 0:01:05]} 30. Re6 {[%emt 0:02:57]} Bg2 {[%emt 0:00:49]} 31. h4 {[%emt 0:00:20]} Bd4 {[%emt 0:01:46]} 32. Ne2 {[%emt 0:01:14]} b5 {[%emt 0:02:00]} 33. Nxd4 {[%emt 0:02:39]} Rxd4 {[%emt 0:00:12]} 34. Be2 {[%emt 0:01:20]} Re4 {[%emt 0:01:30]} 35. Rxe4 {[%emt 0:00:13]} Bxe4 {[%emt 0:00:02]} 36. c4 {[%emt 0:01:27]} Bc6 {[%emt 0:00:12]} 37. cxb5 {[%emt 0:00:19]} axb5 {[%emt 0:00:19]} 38. Kc3 {[%emt 0:00:04]} Kf6 {[%emt 0:00:34]} 39. Kd4 {[%emt 0:01:04]} Bd7 {[%emt 0:00:43]} 40. Kc5 {[%emt 0:00:15]} Ke5 {[%emt 0:00:49]} 41. g5 {[%emt 0:00:50]} hxg5 {[%emt 0:00:18]} 42. hxg5 {[%emt 0:00:04]} c6 {[%emt 0:00:59]} 43. Bd3 {[%emt 0:01:05]} Bf5 {[%emt 0:00:02]} 44. Be2 {[%emt 0:00:32]} Be4 {[%emt 0:00:07]} 45. Bd1 {[%emt 0:00:22]} Kf4 {[%emt 0:00:10]} 46. Kd4 {[%emt 0:00:40]} Bg6 {[%emt 0:01:41]} 47. a4 {[%emt 0:00:09]} bxa4 {[%emt 0:00:06]} 48. Bxa4 {[%emt 0:00:05]} Be4 {[%emt 0:00:36]} 49. b5 {[%emt 0:00:05]} cxb5 {[%emt 0:00:10]} 50. Bxb5 {[%emt 0:00:04]} Bg6 {[%emt 0:00:09]} 51. Be2 {[%emt 0:00:20]} Kxg5 {[%emt 0:00:09]} 52. Ke3 {[%emt 0:00:06]} Bf5 {[%emt 0:00:25]} 53. Kf2 {[%emt 0:00:08]} Be4 {[%emt 0:00:14]} 54. Kg3 {[%emt 0:00:08]} 1/2-1/2

[Event "98th Caplin Hastings Masters 2024-25"]
[Site "Hastings"]
[Date "2025.01.02"]
[Round "8.26"]
[White "Chandler, Cliff R"]
[Black "Mikalajunas, Kajus"]
[Result "1-0"]
[ECO "B12"]
[WhiteElo "2161"]
[BlackElo "1941"]
[Annotator "RC"]
[PlyCount "131"]
[EventDate "2024.12.23"]
[EventType "swiss"]
[EventCountry "ENG"]
[SourceTitle "playchess.com"]
[Source "ChessBase"]
[SourceQuality "1"]
[TimeControl "5400+30"]

1. e4 {[%emt 0:00:03]} c6 {[%emt 0:00:01]} 2. d4 {[%emt 0:01:41]} d5 {[%emt 0:00:01]} 3. e5 {[%emt 0:00:11]} Bf5 {[%emt 0:00:01]} 4. h4 {[%emt 0:01:12]} h5 {[%emt 0:00:01]} 5. Bd3 {[%emt 0:00:22]} Bxd3 {[%emt 0:00:03]} 6. Qxd3 {[%emt 0:00:13]} Qa5+ {[%emt 0:00:01]} 7. c3 {[%emt 0:05:42]} e6 {[%emt 0:02:55]} 8. Ne2 {[%emt 0:04:12]} Ne7 {[%emt 0:13:51]} 9. Ng3 {[%emt 0:03:11]} Qa6 {[%emt 0:11:28]} 10. Qxa6 {[%emt 0:12:08]} Nxa6 {[%emt 0:00:05]} 11. Na3 {[%emt 0:00:29]} Ng6 {[%emt 0:06:11]} 12. Bg5 {[%emt 0:03:48]} Bxa3 {[%emt 0:10:26]} 13. bxa3 {[%emt 0:00:35]} b5 {[%emt 0:04:55]} 14. f4 {[%emt 0:03:47]} Ne7 {[%emt 0:08:25]} 15. Bxe7 {[%emt 0:01:04]} Kxe7 {[%emt 0:00:02]} 16. f5 {[%emt 0:00:15]} g6 {[%emt 0:00:36]} 17. f6+ {[%emt 0:03:09]} Kd8 {[%emt 0:03:13]} 18. Ne2 {[%emt 0:02:26]} Nb8 {[%emt 0:01:06]} 19. Kf2 {[%emt 0:04:49]} Nd7 {[%emt 0:00:59]} 20. Rag1 {[%emt 0:00:10]} Nb6 {[%emt 0:10:45]} 21. g4 {[%emt 0:01:37]} hxg4 {[%emt 0:03:36]} 22. Rxg4 {[%emt 0:01:08]} Nc4 {[%emt 0:00:45]} 23. h5 {[%emt 0:04:11]} Nxa3 {[%emt 0:02:00]} 24. Nf4 {[%emt 0:01:58]} Kd7 {[%emt 0:02:19]} 25. Kg2 {[%emt 0:03:21]} Nc4 {[%emt 0:03:36]} 26. Rh3 {[%emt 0:04:35]} gxh5 {[%emt 0:07:51]} 27. Rg7 {[%emt 0:00:25]} Rhg8 {[%emt 0:03:12]} 28. Rhg3 {[%emt 0:01:28]} Rgf8 {[%emt 0:01:31]} 29. Ng6 {[%emt 0:00:31]} Nd2 {[%emt 0:03:00]} 30. Nxf8+ {[%emt 0:01:29]} Rxf8 {[%emt 0:00:01]} 31. Rg8 {[%emt 0:00:56]} Ke8 {[%emt 0:00:01]} 32. Rxf8+ {[%emt 0:00:45]} Kxf8 {[%emt 0:00:01]} 33. Kh3 {[%emt 0:01:34]} Ne4 {[%emt 0:00:23]} 34. Re3 {[%emt 0:01:06]} Kg8 {[%emt 0:00:49]} 35. Kh4 {[%emt 0:00:39]} Kh7 {[%emt 0:01:59]} 36. Kxh5 {[%emt 0:00:07]} a5 {[%emt 0:00:07]} 37. Kg4 {[%emt 0:02:16]} Kg6 {[%emt 0:00:53]} 38. Kf4 {[%emt 0:00:05]} Kh7 {[%emt 0:01:00]} 39. Rh3+ {[%emt 0:32:22]} Kg8 {[%emt 0:00:17]} 40. Rh2 {[%emt 0:00:00]} Nxc3 {[%emt 0:00:15]} 41. Rg2+ {[%emt 0:00:00]} Kf8 {[%emt 0:00:02]} 42. Kg5 {[%emt 0:00:00]} Nd1 {[%emt 0:00:58]} 43. Kh6 {[%emt 0:00:00]} Ne3 {[%emt 0:00:13]} 44. Rg7 {[%emt 0:00:00]} Nf5+ {[%emt 0:00:21]} 45. Kh7 {[%emt 0:00:00]} Ke8 {[%emt 0:00:19]} 46. Rg8+ {[%emt 0:00:00]} Kd7 {[%emt 0:00:01]} 47. Rf8 {[%emt 0:00:00]} Nxd4 {[%emt 0:01:18]} 48. Rxf7+ {[%emt 0:00:00]} Ke8 {[%emt 0:00:17]} 49. Rc7 {[%emt 0:00:00]} Nf3 {[%emt 0:00:53]} 50. Kg7 {[%emt 0:00:00]} Nxe5 {[%emt 0:00:40]} 51. f7+ {[%emt 0:00:00]} Nxf7 {[%emt 0:00:28]} 52. Rxf7 {[%emt 0:00:00]} e5 {[%emt 0:00:01]} 53. Kf6 {[%emt 0:00:00]} e4 {[%emt 0:00:10]} 54. Rc7 {[%emt 0:00:00]} d4 {[%emt 0:02:15]} 55. Re7+ {[%emt 0:00:00]} Kd8 {[%emt 0:00:16]} 56. Rxe4 {[%emt 0:00:00]} c5 {[%emt 0:00:25]} 57. Re5 {[%emt 0:00:00]} Kd7 {[%emt 0:00:56]} 58. Rxc5 {[%emt 0:00:00]} Kd6 {[%emt 0:00:08]} 59. Rxb5 {[%emt 0:00:00]} a4 {[%emt 0:01:07]} 60. Kf5 {[%emt 0:00:00]} Kc6 {[%emt 0:00:14]} 61. Re5 {[%emt 0:00:00]} d3 {[%emt 0:00:18]} 62. Re3 {[%emt 0:00:00]} d2 {[%emt 0:00:21]} 63. Rd3 {[%emt 0:00:00]} Kc5 {[%emt 0:00:15]} 64. Rxd2 {[%emt 0:00:00]} Kc4 {[%emt 0:00:07]} 65. Ke4 {[%emt 0:00:00]} Kc3 {[%emt 0:00:06]} 66. Ke3 {[%emt 0:00:00]} 1-0

[Event "98th Caplin Hastings Masters 2024-25"]
[Site "Hastings"]
[Date "2025.01.02"]
[Round "8.27"]
[White "Struck, Lasse"]
[Black "Brewer, Callum D"]
[Result "1-0"]
[ECO "E04"]
[WhiteElo "1983"]
[BlackElo "2151"]
[Annotator "RC"]
[PlyCount "129"]
[EventDate "2024.12.23"]
[EventType "swiss"]
[EventCountry "ENG"]
[SourceTitle "playchess.com"]
[Source "ChessBase"]
[SourceQuality "1"]
[TimeControl "5400+30"]

1. d4 {[%emt 0:00:03]} Nf6 {[%emt 0:00:11]} 2. c4 {[%emt 0:00:09]} e6 {[%emt 0:00:02]} 3. g3 {[%emt 0:00:07]} d5 {[%emt 0:00:02]} 4. Bg2 {[%emt 0:00:06]} dxc4 {[%emt 0:01:09]} 5. Nf3 {[%emt 0:00:06]} Nc6 {[%emt 0:00:13]} 6. Qa4 {[%emt 0:00:19]} Bb4+ {[%emt 0:00:36]} 7. Bd2 {[%emt 0:00:33]} Nd5 {[%emt 0:00:02]} 8. Bxb4 {[%emt 0:05:07]} Ndxb4 {[%emt 0:00:03]} 9. O-O {[%emt 0:03:06]} Rb8 {[%emt 0:28:54]} 10. Na3 {[%emt 0:13:53]} O-O {[%emt 0:10:02]} 11. Qb5 {[%emt 0:01:24]} b6 {[%emt 0:14:38]} 12. Qxc4 {[%emt 0:02:45]} Ba6 {[%emt 0:02:05]} 13. Nb5 {[%emt 0:00:55]} Qd5 {[%emt 0:10:03]} 14. Qxd5 {[%emt 0:01:35]} Nxd5 {[%emt 0:01:50]} 15. a4 {[%emt 0:00:52]} Na5 {[%emt 0:09:30]} 16. Ne5 {[%emt 0:07:25]} Rfd8 {[%emt 0:00:02]} 17. Nxa7 {[%emt 0:09:20]} Nb4 {[%emt 0:00:06]} 18. Nb5 {[%emt 0:06:23]} c6 {[%emt 0:02:23]} 19. Na7 {[%emt 0:08:02]} Bb7 {[%emt 0:04:42]} 20. Rac1 {[%emt 0:03:00]} Rd6 {[%emt 0:00:50]} 21. e3 {[%emt 0:05:39]} Ra8 {[%emt 0:00:49]} 22. Nc4 {[%emt 0:00:17]} Nxc4 {[%emt 0:04:15]} 23. Rxc4 {[%emt 0:00:07]} Nd5 {[%emt 0:00:02]} 24. e4 {[%emt 0:02:34]} Ba6 {[%emt 0:02:38]} 25. Rxc6 {[%emt 0:03:01]} Rxc6 {[%emt 0:00:17]} 26. Nxc6 {[%emt 0:00:25]} Bxf1 {[%emt 0:00:14]} 27. Kxf1 {[%emt 0:01:18]} Nf6 {[%emt 0:01:21]} 28. e5 {[%emt 0:00:49]} Nd5 {[%emt 0:00:37]} 29. Ne7+ {[%emt 0:00:17]} Kf8 {[%emt 0:00:02]} 30. Nxd5 {[%emt 0:00:09]} exd5 {[%emt 0:00:29]} 31. b3 {[%emt 0:00:15]} Ra5 {[%emt 0:01:45]} 32. Ke2 {[%emt 0:02:27]} b5 {[%emt 0:00:48]} 33. axb5 {[%emt 0:00:12]} Rxb5 {[%emt 0:00:09]} 34. Kd2 {[%emt 0:00:10]} Rxb3 {[%emt 0:02:02]} 35. Bxd5 {[%emt 0:00:12]} Rb2+ {[%emt 0:00:06]} 36. Ke3 {[%emt 0:00:12]} f6 {[%emt 0:02:11]} 37. Be4 {[%emt 0:06:01]} fxe5 {[%emt 0:00:21]} 38. dxe5 {[%emt 0:00:02]} h6 {[%emt 0:00:55]} 39. h4 {[%emt 0:01:14]} Rb3+ {[%emt 0:02:45]} 40. Kf4 {[%emt 0:00:18]} Rb4 {[%emt 0:00:48]} 41. h5 {[%emt 0:00:39]} Ke7 {[%emt 0:00:31]} 42. Kf5 {[%emt 0:00:41]} Rb6 {[%emt 0:00:08]} 43. f4 {[%emt 0:06:25]} Ra6 {[%emt 0:00:02]} 44. g4 {[%emt 0:01:37]} Rb6 {[%emt 0:00:01]} 45. g5 {[%emt 0:02:11]} Ra6 {[%emt 0:00:28]} 46. Bd5 {[%emt 0:04:56]} Ra5 {[%emt 0:00:05]} 47. Bc4 {[%emt 0:01:31]} Ra4 {[%emt 0:00:04]} 48. Be2 {[%emt 0:00:16]} Ra2 {[%emt 0:00:25]} 49. gxh6 {[%emt 0:00:25]} gxh6 {[%emt 0:00:14]} 50. Bd3 {[%emt 0:01:02]} Ra3 {[%emt 0:00:29]} 51. Bc4 {[%emt 0:00:57]} Ra4 {[%emt 0:00:05]} 52. Bd5 {[%emt 0:00:08]} Ra5 {[%emt 0:00:11]} 53. Ke4 {[%emt 0:00:35]} Ra4+ {[%emt 0:01:00]} 54. Ke3 {[%emt 0:00:54]} Ra3+ {[%emt 0:00:48]} 55. Kd4 {[%emt 0:00:09]} Ra1 {[%emt 0:02:16]} 56. f5 {[%emt 0:00:43]} Rf1 {[%emt 0:00:09]} 57. Be4 {[%emt 0:00:28]} Rf2 {[%emt 0:00:50]} 58. Ke3 {[%emt 0:00:38]} Rh2 {[%emt 0:00:37]} 59. f6+ {[%emt 0:01:45]} Kf8 {[%emt 0:01:07]} 60. e6 {[%emt 0:01:42]} Rh3+ {[%emt 0:00:29]} 61. Bf3 {[%emt 0:01:29]} Ke8 {[%emt 0:00:32]} 62. Kf4 {[%emt 0:00:25]} Rh4+ {[%emt 0:00:06]} 63. Ke5 {[%emt 0:00:09]} Rc4 {[%emt 0:00:18]} 64. Kd6 {[%emt 0:00:43]} Rd4+ {[%emt 0:00:31]} 65. Bd5 {[%emt 0:00:01]} 1-0

[Event "98th Caplin Hastings Masters 2024-25"]
[Site "Hastings"]
[Date "2025.01.02"]
[Round "8.28"]
[White "Brown, Tom"]
[Black "Sciupokas, Arunas"]
[Result "1-0"]
[ECO "D07"]
[WhiteElo "1932"]
[BlackElo "1969"]
[Annotator "NA RC"]
[PlyCount "51"]
[EventDate "2024.12.23"]
[EventType "swiss"]
[EventCountry "ENG"]
[SourceTitle "playchess.com"]
[Source "ChessBase"]
[SourceQuality "1"]
[TimeControl "5400+30"]

1. d4 {[%emt 0:00:03]} d5 {[%emt 0:00:12]} 2. Nf3 {[%emt 0:00:30]} Nc6 {[%emt 0:00:57]} 3. c4 {[%emt 0:00:09]} Bg4 {[%emt 0:00:15]} 4. Nbd2 {[%emt 0:00:08]} dxc4 {[%emt 0:02:45]} 5. e3 {[%emt 0:00:32]} e6 {[%emt 0:06:23]} 6. Bxc4 {[%emt 0:02:24]} Bd6 {[%emt 0:06:18]} 7. Qa4 {[%emt 0:05:40]} Nge7 {[%emt 0:10:14]} 8. a3 {[%emt 0:06:05]} O-O {[%emt 0:02:21]} 9. h3 {[%emt 0:02:35]} Bxf3 {[%emt 0:09:17]} 10. Nxf3 {[%emt 0:01:13]} Ng6 {[%emt 0:07:09]} 11. h4 {[%emt 0:04:28]} Nge7 {[%emt 0:13:09]} 12. Qc2 {[%emt 0:04:18]} Qd7 {[%emt 0:13:32]} 13. Ng5 {[%emt 0:05:22]} g6 {[%emt 0:01:01]} 14. h5 {[%emt 0:00:56]} h6 {[%emt 0:06:31]} 15. hxg6 {[%emt 0:05:13]} Nxg6 {[%emt 0:00:13]} 16. Bxe6 {[%emt 0:05:22]} fxe6 {[%emt 0:01:12]} 17. Qxg6+ {[%emt 0:00:08]} Qg7 {[%emt 0:00:10]} 18. Qxg7+ {[%emt 0:00:05]} Kxg7 {[%emt 0:00:08]} 19. Nxe6+ {[%emt 0:00:03]} Kg6 {[%emt 0:00:26]} 20. Nxf8+ {[%emt 0:00:07]} Rxf8 {[%emt 0:00:16]} 21. Bd2 {[%emt 0:00:50]} Re8 {[%emt 0:01:05]} 22. O-O-O {[%emt 0:01:04]} Bf8 {[%emt 0:00:23]} 23. Rhe1 {[%emt 0:04:18]} Rd8 {[%emt 0:00:55]} 24. Bc3 {[%emt 0:00:19]} Bd6 {[%emt 0:02:46]} 25. g3 {[%emt 0:00:50]} Rf8 {[%emt 0:01:24]} 26. f4 {[%emt 0:00:13]} 1-0

[Event "98th Caplin Hastings Masters 2024-25"]
[Site "Hastings"]
[Date "2025.01.02"]
[Round "8.29"]
[White "Kim, Taewoo A"]
[Black "Patel, Zain"]
[Result "0-1"]
[ECO "D40"]
[WhiteElo "1863"]
[BlackElo "2099"]
[Annotator "NA RC"]
[PlyCount "52"]
[EventDate "2024.12.23"]
[EventType "swiss"]
[EventCountry "ENG"]
[SourceTitle "playchess.com"]
[Source "ChessBase"]
[SourceQuality "1"]
[TimeControl "5400+30"]

1. d4 {[%emt 0:00:03]} Nf6 {[%emt 0:01:01]} 2. c4 {[%emt 0:00:13]} e6 {[%emt 0:00:06]} 3. Nf3 {[%emt 0:00:32]} d5 {[%emt 0:00:23]} 4. Nc3 {[%emt 0:00:14]} c5 {[%emt 0:05:24]} 5. e3 {[%emt 0:01:16]} Nc6 {[%emt 0:00:06]} 6. a3 {[%emt 0:00:13]} Ne4 {[%emt 0:02:58]} 7. Bd3 {[%emt 0:01:32]} Nxc3 {[%emt 0:01:44]} 8. bxc3 {[%emt 0:00:04]} dxc4 {[%emt 0:01:00]} 9. Bxc4 {[%emt 0:00:15]} Be7 {[%emt 0:00:51]} 10. O-O {[%emt 0:01:20]} O-O {[%emt 0:00:26]} 11. Qe2 {[%emt 0:04:58]} Qc7 {[%emt 0:07:34]} 12. Bb2 {[%emt 0:06:41]} Bd7 {[%emt 0:06:12]} 13. Ba2 {[%emt 0:07:47]} Rfd8 {[%emt 0:03:28]} 14. Rac1 {[%emt 0:03:44]} Rac8 {[%emt 0:00:46]} 15. h4 {[%emt 0:03:49]} cxd4 {[%emt 0:04:11]} 16. cxd4 {[%emt 0:01:58]} Qa5 {[%emt 0:01:54]} 17. Bb1 {[%emt 0:15:00]} Qh5 {[%emt 0:09:24]} 18. Qd3 {[%emt 0:04:48]} Na5 {[%emt 0:01:46]} 19. Rxc8 {[%emt 0:06:13]} Rxc8 {[%emt 0:01:27]} 20. Ne5 {[%emt 0:01:30]} Be8 {[%emt 0:01:19]} 21. g4 {[%emt 0:07:58]} Qxh4 {[%emt 0:03:15]} 22. Kg2 {[%emt 0:01:45]} Nc6 {[%emt 0:00:58]} 23. f3 {[%emt 0:18:43]} Nxe5 {[%emt 0:02:18]} 24. dxe5 {[%emt 0:00:03]} Bc6 {[%emt 0:01:16]} 25. e4 {[%emt 0:01:12]} Rd8 {[%emt 0:00:22]} 26. Qe2 {[%emt 0:01:24]} Bb5 {[%emt 0:00:52]} 0-1

[Event "98th Caplin Hastings Masters 2024-25"]
[Site "Hastings"]
[Date "2025.01.02"]
[Round "8.30"]
[White "Verbin, Valentina"]
[Black "Dewangan, Aayush"]
[Result "1/2-1/2"]
[ECO "B90"]
[WhiteElo "2093"]
[BlackElo "1878"]
[Annotator "NA RC"]
[PlyCount "100"]
[EventDate "2024.12.23"]
[EventType "swiss"]
[EventCountry "ENG"]
[SourceTitle "playchess.com"]
[Source "ChessBase"]
[SourceQuality "1"]
[TimeControl "5400+30"]

1. e4 {[%emt 0:00:12]} c5 {[%emt 0:00:06]} 2. Nf3 {[%emt 0:00:23]} d6 {[%emt 0:00:06]} 3. d4 {[%emt 0:00:12]} cxd4 {[%emt 0:00:05]} 4. Nxd4 {[%emt 0:00:07]} Nf6 {[%emt 0:00:05]} 5. Nc3 {[%emt 0:00:05]} a6 {[%emt 0:00:13]} 6. Bd3 {[%emt 0:00:29]} e5 {[%emt 0:01:05]} 7. Nde2 {[%emt 0:00:33]} Be6 {[%emt 0:01:46]} 8. O-O {[%emt 0:00:50]} Be7 {[%emt 0:02:39]} 9. f4 {[%emt 0:01:10]} b5 {[%emt 0:11:05]} 10. f5 {[%emt 0:06:42]} Qb6+ {[%emt 0:02:17]} 11. Kh1 {[%emt 0:00:23]} Bc4 {[%emt 0:00:46]} 12. Bxc4 {[%emt 0:19:36]} bxc4 {[%emt 0:00:09]} 13. Bg5 {[%emt 0:00:44]} Nbd7 {[%emt 0:08:17]} 14. Nd5 {[%emt 0:03:30]} Nxd5 {[%emt 0:00:59]} 15. Qxd5 {[%emt 0:00:09]} Rc8 {[%emt 0:00:53]} 16. Bxe7 {[%emt 0:02:07]} Kxe7 {[%emt 0:00:13]} 17. Nc3 {[%emt 1:01:48]} Nf6 {[%emt 0:04:59]} 18. Qd2 {[%emt 0:00:00]} h6 {[%emt 0:21:28]} 19. Rab1 {[%emt 0:00:00]} Qc6 {[%emt 0:08:47]} 20. Qf2 {[%emt 0:00:00]} Rhe8 {[%emt 0:05:23]} 21. Qh4 {[%emt 0:00:00]} Kf8 {[%emt 0:00:26]} 22. Nd5 {[%emt 0:00:00]} Nxd5 {[%emt 0:02:00]} 23. exd5 {[%emt 0:00:00]} Qxd5 {[%emt 0:00:18]} 24. Rbd1 {[%emt 0:00:00]} Qc6 {[%emt 0:00:55]} 25. f6 {[%emt 0:00:00]} Re6 {[%emt 0:01:06]} 26. Rf3 {[%emt 0:00:00]} e4 {[%emt 0:14:51]} 27. fxg7+ {[%emt 0:00:00]} Kxg7 {[%emt 0:00:05]} 28. Rg3+ {[%emt 0:00:00]} Kh7 {[%emt 0:05:19]} 29. Rf1 {[%emt 0:00:00]} Qb7 {[%emt 0:00:32]} 30. Qg4 {[%emt 0:05:37]} Rg6 {[%emt 0:01:13]} 31. Qf5 {[%emt 0:00:06]} Rc5 {[%emt 0:02:39]} 32. Qxf7+ {[%emt 0:00:41]} Qxf7 {[%emt 0:00:02]} 33. Rxf7+ {[%emt 0:00:07]} Kg8 {[%emt 0:00:03]} 34. Rxg6+ {[%emt 0:00:13]} Kxf7 {[%emt 0:00:03]} 35. Rxd6 {[%emt 0:00:04]} Ra5 {[%emt 0:02:04]} 36. Kg1 {[%emt 0:00:54]} Rxa2 {[%emt 0:00:34]} 37. Rb6 {[%emt 0:00:10]} e3 {[%emt 0:03:34]} 38. Kf1 {[%emt 0:00:40]} c3 {[%emt 0:00:48]} 39. bxc3 {[%emt 0:00:16]} Rxc2 {[%emt 0:00:03]} 40. Rxh6 {[%emt 0:00:51]} Rf2+ {[%emt 0:00:20]} 41. Kg1 {[%emt 0:00:50]} Rc2 {[%emt 0:00:36]} 42. Kf1 {[%emt 0:00:17]} Rf2+ {[%emt 0:00:03]} 43. Ke1 {[%emt 0:00:05]} Rxg2 {[%emt 0:00:31]} 44. h4 {[%emt 0:00:45]} Rc2 {[%emt 0:00:58]} 45. Rxa6 {[%emt 0:00:36]} Rxc3 {[%emt 0:00:04]} 46. Ke2 {[%emt 0:00:05]} Rc4 {[%emt 0:00:29]} 47. h5 {[%emt 0:00:09]} Rh4 {[%emt 0:00:12]} 48. h6 {[%emt 0:00:08]} Kg8 {[%emt 0:00:21]} 49. Ra8+ {[%emt 0:00:39]} Kh7 {[%emt 0:00:11]} 50. Kxe3 {[%emt 0:00:03]} Rxh6 {[%emt 0:00:04]} 1/2-1/2